fUSD/lending_fUSD_20250923
["ID","MTS","AMOUNT","RATE_DAILY","PERIOD"]
[387131528,1758588670692,-644.46,0.00020546,2]
[387131529,1758588670704,-2259.45,0.00020546,2]
[387131530,1758588670716,-400.0,0.00020546,2]
[387131531,1758588670728,-434.59,0.00020546,2]
[387131532,1758588670741,-1093.45,0.00020546,2]
[387131533,1758588670753,-500.0,0.00020546,2]
[387131534,1758588670765,-1283.49,0.00020546,2]
[387131535,1758588670778,-579.07,0.00020546,2]
[387131536,1758588670790,-1392.04,0.00020546,2]
[387131537,1758588670802,-400.0,0.00020546,2]
[387131538,1758588670814,-400.0,0.00020546,2]
[387131539,1758588670825,-400.0,0.00020546,2]
[387131540,1758588670838,-586.63,0.00020546,2]
[387131541,1758588670849,-852.34,0.00020546,2]
[387131542,1758588670862,-400.0,0.00020546,2]
[387131543,1758588670873,-691.38,0.00020546,2]
[387131544,1758588670886,-602.29,0.00020546,2]
[387131545,1758588670897,-691.38,0.00020546,2]
[387131546,1758588670909,-2120.46,0.00020546,2]
[387131547,1758588670920,-400.0,0.00020546,2]
[387131548,1758588670932,-730.17,0.00020546,2]
[387131549,1758588670944,-713.11,0.00020546,2]
[387131550,1758588670955,-400.0,0.00020546,2]
[387131551,1758588670968,-824.24,0.00020546,2]
[387131552,1758588670979,-2178.93,0.00020546,2]
[387131553,1758588670991,-563.68,0.00020546,2]
[387131554,1758588671003,-400.0,0.00020546,2]
[387131555,1758588671015,-624.27,0.00020546,2]
[387131556,1758588671027,-1279.8,0.00020546,2]
[387131557,1758588671039,-400.0,0.00020546,2]
[387131558,1758588671052,-400.0,0.00020546,2]
[387131559,1758588671065,-400.0,0.00020546,2]
[387131560,1758588671077,-400.0,0.00020546,2]
[387131561,1758588671091,-400.0,0.00020547,2]
[387131562,1758588671100,-400.0,0.00020547,2]
[387131563,1758588671109,-400.0,0.00020547,2]
[387131564,1758588671117,-400.0,0.00020547,2]
[387131565,1758588671127,-400.0,0.00020547,2]
[387131566,1758588671137,-394.6,0.00020547,2]
[387131567,1758588671146,-400.0,0.00020547,2]
[387131568,1758588671155,-400.0,0.00020547,2]
[387131569,1758588671166,-400.0,0.00020547,2]
[387131570,1758588671176,-400.0,0.00020547,2]
[387131571,1758588671185,-400.0,0.00020547,2]
[387131572,1758588671194,-400.0,0.00020547,2]
[387131573,1758588671203,-400.0,0.00020547,2]
[387131574,1758588671212,-400.0,0.00020547,2]
[387131575,1758588671221,-184.56113824,0.00020547,2]
[387131576,1758588671231,-156.05,0.00020547,2]
[387131577,1758588671241,-400.0,0.00020547,2]
[387131578,1758588671251,-400.0,0.00020547,2]
[387131579,1758588671260,-400.0,0.00020547,2]
[387131580,1758588671270,-400.0,0.00020547,2]
[387131581,1758588671279,-400.0,0.00020547,2]
[387131582,1758588671289,-400.0,0.00020547,2]
[387131583,1758588671308,-400.0,0.00020547,2]
[387131584,1758588671323,-400.0,0.00020547,2]
[387131585,1758588671331,-400.0,0.00020547,2]
[387131586,1758588671340,-400.0,0.00020547,2]
[387131587,1758588671351,-400.0,0.00020547,2]
[387131588,1758588671360,-400.0,0.00020547,2]
[387131589,1758588671369,-400.0,0.00020547,2]
[387131590,1758588671378,-400.0,0.00020547,2]
[387131591,1758588671388,-400.0,0.00020547,2]
[387131592,1758588671397,-400.0,0.00020547,2]
[387131593,1758588671406,-406.6387828,0.00020547,2]
[387131594,1758588671417,-400.0,0.00020547,2]
[387131595,1758588671426,-400.0,0.00020547,2]
[387131596,1758588671436,-400.0,0.00020547,2]
[387131597,1758588671445,-400.0,0.00020547,2]
[387131598,1758588671454,-400.0,0.00020547,2]
[387131599,1758588671463,-400.0,0.00020547,2]
[387131600,1758588671473,-400.0,0.00020547,2]
[387131601,1758588671482,-400.0,0.00020547,2]
[387131602,1758588671491,-400.0,0.00020547,2]
[387131603,1758588671504,-400.0,0.00020547,2]
[387131604,1758588671513,-400.0,0.00020547,2]
[387131605,1758588671522,-400.0,0.00020547,2]
[387131606,1758588671531,-400.0,0.00020547,2]
[387131607,1758588671544,-400.0,0.00020547,2]
[387131608,1758588671553,-400.0,0.00020547,2]
[387131609,1758588671562,-400.0,0.00020547,2]
[387131610,1758588671572,-400.0,0.00020547,2]
[387131611,1758588671583,-400.0,0.00020547,2]
[387131612,1758588671599,-400.0,0.00020547,2]
[387131613,1758588671609,-400.0,0.00020547,2]
[387131614,1758588671618,-555.17,0.00020547,2]
[387131615,1758588671627,-400.0,0.00020547,2]
[387131616,1758588671638,-400.0,0.00020547,2]
[387131617,1758588671648,-400.0,0.00020547,2]
[387131618,1758588671657,-400.0,0.00020547,2]
[387131619,1758588671666,-400.0,0.00020547,2]
[387131620,1758588671675,-400.0,0.00020547,2]
[387131621,1758588671684,-400.0,0.00020547,2]
[387131622,1758588671694,-400.0,0.00020547,2]
[387131623,1758588671703,-400.0,0.00020547,2]
[387131624,1758588671712,-400.0,0.00020547,2]
[387131625,1758588671728,-400.0,0.00020547,2]
[387131626,1758588671737,-400.0,0.00020547,2]
[387131627,1758588671746,-491.16,0.00020547,2]
[387131628,1758588671755,-400.0,0.00020547,2]
[387131629,1758588671765,-400.0,0.00020547,2]
[387131630,1758588672303,-400.0,0.00020547,2]
[387131631,1758588672328,-400.0,0.00020547,2]
[387131632,1758588672345,-400.0,0.00020547,2]
[387131633,1758588672358,-400.0,0.00020547,2]
[387131634,1758588672369,-400.0,0.00020547,2]
[387131635,1758588672378,-400.0,0.00020547,2]
[387131636,1758588672387,-400.0,0.00020547,2]
[387131637,1758588672396,-400.0,0.00020547,2]
[387131638,1758588672406,-400.0,0.00020547,2]
[387131639,1758588672415,-400.0,0.00020547,2]
[387131640,1758588672427,-400.0,0.00020547,2]
[387131641,1758588672436,-400.0,0.00020547,2]
[387131642,1758588672445,-400.0,0.00020547,2]
[387131643,1758588672454,-400.0,0.00020547,2]
[387131644,1758588672463,-424.5663779,0.00020547,2]
[387131645,1758588672473,-404.82042785,0.00020547,2]
[387131646,1758588672485,-400.0,0.00020547,2]
[387131647,1758588672494,-416.06,0.00020547,2]
[387131648,1758588672503,-439.92,0.00020547,2]
[387131649,1758588672512,-400.0,0.00020547,2]
[387131650,1758588672521,-400.0,0.00020547,2]
[387131651,1758588672530,-400.0,0.00020547,2]
[387131652,1758588672540,-400.0,0.00020547,2]
[387131653,1758588672549,-400.0,0.00020547,2]
[387131654,1758588672558,-290.26771006,0.00020547,2]
[387131655,1758588672568,-400.0,0.00020547,2]
[387131656,1758588672577,-400.0,0.00020547,2]
[387131657,1758588672586,-400.0,0.00020547,2]
[387131658,1758588672595,-400.0,0.00020547,2]
[387131659,1758588672604,-400.0,0.00020547,2]
[387131660,1758588672613,-400.0,0.00020547,2]
[387131661,1758588672622,-400.0,0.00020547,2]
[387131662,1758588672631,-400.0,0.00020547,2]
[387131663,1758588672641,-400.0,0.00020547,2]
[387131664,1758588672650,-400.0,0.00020547,2]
[387131665,1758588672659,-428.44,0.00020547,2]
[387131666,1758588672668,-400.0,0.00020547,2]
[387131667,1758588672677,-400.0,0.00020547,2]
[387131668,1758588672686,-400.0,0.00020547,2]
[387131669,1758588672695,-400.0,0.00020547,2]
[387131670,1758588672704,-400.0,0.00020547,2]
[387131671,1758588672713,-400.0,0.00020547,2]
[387131672,1758588672722,-400.0,0.00020547,2]
[387131673,1758588672732,-400.0,0.00020547,2]
[387131674,1758588672741,-400.0,0.00020547,2]
[387131675,1758588672750,-159.74,0.00020547,2]
[387131676,1758588672759,-400.0,0.00020547,2]
[387131677,1758588672768,-400.0,0.00020547,2]
[387131678,1758588672777,-400.0,0.00020547,2]
[387131679,1758588672786,-402.3450358,0.00020547,2]
[387131680,1758588672795,-400.0,0.00020547,2]
[387131681,1758588672804,-400.0,0.00020547,2]
[387131682,1758588672813,-387.04,0.00020547,2]
[387131683,1758588672822,-400.0,0.00020547,2]
[387131684,1758588672830,-400.0,0.00020547,2]
[387131685,1758588672839,-400.0,0.00020547,2]
[387131686,1758588672848,-387.77780113,0.00020547,2]
[387131687,1758588672857,-400.0,0.00020547,2]
[387131688,1758588672867,-400.0,0.00020547,2]
[387131689,1758588672877,-400.0,0.00020547,2]
[387131690,1758588672887,-400.0,0.00020547,2]
[387131691,1758588672897,-400.0,0.00020547,2]
[387131692,1758588672907,-400.0,0.00020547,2]
[387131693,1758588672917,-400.0,0.00020547,2]
[387131694,1758588672926,-400.0,0.00020547,2]
[387131695,1758588672935,-162.24,0.00020547,2]
[387131696,1758588672944,-400.0,0.00020547,2]
[387131697,1758588672953,-400.0,0.00020547,2]
[387131698,1758588672962,-400.0,0.00020547,2]
[387131699,1758588672971,-400.0,0.00020547,2]
[387131700,1758588672980,-400.0,0.00020547,2]
[387131701,1758588672989,-400.0,0.00020547,2]
[387131702,1758588672998,-400.0,0.00020547,2]
[387131703,1758588673007,-400.0,0.00020547,2]
[387131704,1758588673016,-400.0,0.00020547,2]
[387131705,1758588673025,-754.63,0.00020547,2]
[387131706,1758588673036,-403.38,0.00020547,2]
[387131707,1758588673047,-392.05926135,0.00020547,2]
[387131708,1758588673057,-917.82,0.00020547,2]
[387131709,1758588673068,-400.0,0.00020547,2]
[387131710,1758588673080,-400.0,0.00020547,2]
[387131711,1758588673093,-400.0,0.00020547,2]
[387131712,1758588673104,-400.0,0.00020547,2]
[387131713,1758588673113,-400.0,0.00020547,2]
[387131714,1758588673123,-504.07,0.00020547,2]
[387131715,1758588673132,-418.28,0.00020547,2]
[387131716,1758588673141,-535.33,0.00020547,2]
[387131717,1758588673150,-414.45,0.00020547,2]
[387131718,1758588673162,-597.93,0.00020547,2]
[387131719,1758588673171,-400.0,0.00020547,2]
[387131720,1758588673181,-400.0,0.00020547,2]
[387131721,1758588673190,-599.79,0.00020547,2]
[387131722,1758588673199,-400.0,0.00020547,2]
[387131723,1758588673209,-400.0,0.00020547,2]
[387131724,1758588673218,-400.0,0.00020547,2]
[387131725,1758588673228,-512.84,0.00020547,2]
[387131726,1758588673238,-400.0,0.00020547,2]
[387131727,1758588673247,-151.0,0.00020547,2]
[387131728,1758588673256,-830.32,0.00020547,2]
[387131729,1758588673265,-400.0,0.00020547,2]
[387131730,1758588673274,-530.08,0.00020547,2]
[387131731,1758588673283,-400.0,0.00020547,2]
[387131732,1758588673292,-400.0,0.00020547,2]
[387131733,1758588673302,-400.0,0.00020547,2]
[387131734,1758588673311,-877.74,0.00020547,2]
[387131735,1758588673320,-454.04,0.00020547,2]
[387131736,1758588673329,-400.0,0.00020547,2]
[387131737,1758588673339,-944.31,0.00020547,2]
[387131738,1758588673348,-160.74923,0.00020547,2]
[387131739,1758588673358,-400.0,0.00020547,2]
[387131740,1758588673368,-151.0,0.00020547,2]
[387131741,1758588673377,-400.0,0.00020547,2]
[387131742,1758588673387,-400.0,0.00020547,2]
[387131743,1758588673396,-866.7,0.00020547,2]
[387131744,1758588673405,-400.0,0.00020547,2]
[387131745,1758588673414,-291.10054,0.00020547,2]
[387131746,1758588673423,-355.01071739,0.00020547,2]
[387131747,1758588673433,-983.28,0.00020547,2]
[387131748,1758588673442,-400.0,0.00020547,2]
[387131749,1758588673451,-297.987414,0.00020547,2]
[387131750,1758588673460,-722.94,0.00020547,2]
[387131751,1758588673469,-400.0,0.00020547,2]
[387131752,1758588673478,-400.0,0.00020547,2]
[387131753,1758588673488,-400.0,0.00020547,2]
[387131754,1758588673497,-151.0,0.00020547,2]
[387131755,1758588673506,-400.0,0.00020547,2]
[387131756,1758588673515,-400.0,0.00020547,2]
[387131757,1758588673524,-542.91,0.00020547,2]
[387131758,1758588673533,-400.0,0.00020547,2]
[387131759,1758588673542,-400.0,0.00020547,2]
[387131760,1758588673551,-413.94306081,0.00020547,2]
[387131761,1758588673560,-559.02,0.00020547,2]
[387131762,1758588673569,-531.68,0.00020547,2]
[387131763,1758588673579,-151.0,0.00020547,2]
[387131764,1758588673587,-400.0,0.00020547,2]
[387131765,1758588673597,-400.0,0.00020547,2]
[387131766,1758588673606,-151.0,0.00020547,2]
[387131767,1758588673616,-151.0,0.00020547,2]
[387131768,1758588673625,-400.0,0.00020547,2]
[387131769,1758588673635,-682.63,0.00020547,2]
[387131770,1758588673644,-400.0,0.00020547,2]
[387131771,1758588673653,-151.0,0.00020547,2]
[387131772,1758588673662,-151.0,0.00020547,2]
[387131773,1758588673672,-151.0,0.00020547,2]
[387131774,1758588673681,-151.0,0.00020547,2]
[387131775,1758588673691,-151.0,0.00020547,2]
[387131776,1758588673700,-400.0,0.00020547,2]
[387131777,1758588673709,-151.0,0.00020547,2]
[387131778,1758588673719,-151.0,0.00020547,2]
[387131779,1758588673727,-214.292523,0.00020547,2]
[387131780,1758588673737,-151.0,0.00020547,2]
[387131781,1758588673746,-151.0,0.00020547,2]
[387131782,1758588673755,-400.0,0.00020547,2]
[387131783,1758588673764,-151.0,0.00020547,2]
[387131784,1758588673773,-151.0,0.00020547,2]
[387131785,1758588673782,-154.457858,0.00020547,2]
[387131786,1758588673791,-461.64,0.00020547,2]
[387131787,1758588673802,-400.0,0.00020547,2]
[387131788,1758588673811,-400.0,0.00020547,2]
[387131789,1758588673820,-188.46719608,0.00020547,2]
[387131790,1758588673829,-400.0,0.00020547,2]
[387131791,1758588673840,-400.0,0.00020547,2]
[387131792,1758588673849,-400.0,0.00020547,2]
[387131793,1758588673858,-400.0,0.00020547,2]
[387131794,1758588673867,-458.71,0.00020547,2]
[387131795,1758588673876,-400.0,0.00020547,2]
[387131796,1758588673885,-400.0,0.00020547,2]
[387131797,1758588673894,-671.51,0.00020547,2]
[387131798,1758588673903,-400.0,0.00020547,2]
[387131799,1758588673912,-300.0,0.00020547,2]
[387131800,1758588673921,-400.0,0.00020547,2]
[387131801,1758588673931,-400.0,0.00020547,2]
[387131802,1758588673940,-400.0,0.00020547,2]
[387131803,1758588673950,-404.72,0.00020547,2]
[387131804,1758588673960,-400.0,0.00020547,2]
[387131805,1758588673969,-151.0,0.00020547,2]
[387131806,1758588673981,-151.0,0.00020547,2]
[387131807,1758588673990,-402.6,0.00020547,2]
[387131808,1758588674000,-151.0,0.00020547,2]
[387131809,1758588674010,-151.0,0.00020547,2]
[387131810,1758588674020,-400.0,0.00020547,2]
[387131811,1758588674031,-607.71,0.00020547,2]
[387131812,1758588674042,-151.0,0.00020547,2]
[387131813,1758588674053,-151.0,0.00020547,2]
[387131814,1758588674063,-400.0,0.00020547,2]
[387131815,1758588674074,-151.0,0.00020547,2]
[387131816,1758588674088,-265.602468,0.00020547,2]
[387131817,1758588674099,-394.97,0.00020547,2]
[387131818,1758588674110,-400.0,0.00020547,2]
[387131819,1758588674120,-400.0,0.00020547,2]
[387131820,1758588674131,-151.0,0.00020547,2]
[387131821,1758588674141,-400.0,0.00020547,2]
[387131822,1758588674149,-272.42009037,0.00020547,2]
[387131823,1758588674159,-400.0,0.00020547,2]
[387131824,1758588674169,-231.73,0.00020547,2]
[387131825,1758588674179,-400.0,0.00020547,2]
[387131826,1758588674189,-400.0,0.00020547,2]
[387131827,1758588674199,-400.0,0.00020547,2]
[387131828,1758588674209,-400.0,0.00020547,2]
[387131829,1758588674219,-400.0,0.00020547,2]
[387131830,1758588674230,-421.51,0.00020547,2]
[387131831,1758588674242,-400.0,0.00020547,2]
[387131832,1758588674252,-400.0,0.00020547,2]
[387131833,1758588674261,-400.0,0.00020547,2]
[387131834,1758588674270,-151.0,0.00020547,2]
[387131835,1758588674279,-965.94,0.00020547,2]
[387131836,1758588674288,-151.0,0.00020547,2]
[387131837,1758588674298,-596.18,0.00020547,2]
[387131838,1758588674307,-508.45,0.00020547,2]
[387131839,1758588674318,-400.0,0.00020547,2]
[387131840,1758588674327,-400.0,0.00020547,2]
[387131841,1758588674337,-417.6,0.00020547,2]
[387131842,1758588674347,-779.83,0.00020547,2]
[387131843,1758588674357,-400.0,0.00020547,2]
[387131844,1758588674366,-400.0,0.00020547,2]
[387131845,1758588674376,-400.0,0.00020547,2]
[387131846,1758588674387,-488.28,0.00020547,2]
[387131847,1758588674396,-400.0,0.00020547,2]
[387131848,1758588674405,-400.0,0.00020547,2]
[387131849,1758588674416,-460.89,0.00020547,2]
[387131850,1758588674425,-151.0,0.00020547,2]
[387131851,1758588674435,-400.0,0.00020547,2]
[387131852,1758588674445,-151.0,0.00020547,2]
[387131853,1758588674455,-151.0,0.00020547,2]
[387131854,1758588674464,-400.0,0.00020547,2]
[387131855,1758588674474,-236.29,0.00020547,2]
[387131856,1758588674483,-400.0,0.00020547,2]
[387131857,1758588674493,-400.0,0.00020547,2]
[387131858,1758588674504,-720.23,0.00020547,2]
[387131859,1758588674513,-400.0,0.00020547,2]
[387131860,1758588674523,-400.0,0.00020547,2]
[387131861,1758588674533,-400.0,0.00020547,2]
[387131862,1758588674542,-403.42244346,0.00020547,2]
[387131863,1758588674553,-151.0,0.00020547,2]
[387131864,1758588674562,-400.0,0.00020547,2]
[387131865,1758588674572,-432.08,0.00020547,2]
[387131866,1758588674581,-151.0,0.00020547,2]
[387131867,1758588674591,-151.0,0.00020547,2]
[387131868,1758588674600,-400.0,0.00020547,2]
[387131869,1758588674609,-400.0,0.00020547,2]
[387131870,1758588674618,-173.709212,0.00020547,2]
[387131871,1758588674628,-400.0,0.00020547,2]
[387131872,1758588674638,-926.5,0.00020547,2]
[387131873,1758588674648,-151.0,0.00020547,2]
[387131874,1758588674657,-400.0,0.00020547,2]
[387131875,1758588674667,-400.0,0.00020547,2]
[387131876,1758588674677,-151.0,0.00020547,2]
[387131877,1758588674687,-400.0,0.00020547,2]
[387131878,1758588674697,-453.42,0.00020547,2]
[387131879,1758588674706,-400.0,0.00020547,2]
[387131880,1758588674726,-499.27,0.00020547,2]
[387131881,1758588674736,-415.36,0.00020547,2]
[387131882,1758588674745,-400.0,0.00020547,2]
[387131883,1758588674756,-400.0,0.00020547,2]
[387131884,1758588674765,-400.0,0.00020547,2]
[387131885,1758588674774,-400.0,0.00020547,2]
[387131886,1758588674783,-1064.17,0.00020547,2]
[387131887,1758588674792,-400.0,0.00020547,2]
[387131888,1758588674802,-400.0,0.00020547,2]
[387131889,1758588674811,-400.0,0.00020547,2]
[387131890,1758588674821,-400.0,0.00020547,2]
[387131891,1758588674830,-400.0,0.00020547,2]
[387131892,1758588674839,-400.0,0.00020547,2]
[387131893,1758588674848,-400.0,0.00020547,2]
[387131894,1758588674857,-428.67,0.00020547,2]
[387131895,1758588674867,-400.0,0.00020547,2]
[387131896,1758588674876,-400.0,0.00020547,2]
[387131897,1758588674885,-427.84,0.00020547,2]
[387131898,1758588674894,-400.0,0.00020547,2]
[387131899,1758588674903,-400.0,0.00020547,2]
[387131900,1758588674912,-400.0,0.00020547,2]
[387131901,1758588674922,-404.4,0.00020547,2]
[387131902,1758588674931,-400.0,0.00020547,2]
[387131903,1758588674940,-400.0,0.00020547,2]
[387131904,1758588674949,-400.0,0.00020547,2]
[387131905,1758588674959,-715.39,0.00020547,2]
[387131906,1758588674968,-400.0,0.00020547,2]
[387131907,1758588674977,-214.32150082,0.00020547,2]
[387131908,1758588674988,-515.86,0.00020547,2]
[387131909,1758588674999,-400.0,0.00020547,2]
[387131910,1758588675009,-151.0,0.00020547,2]
[387131911,1758588675020,-400.0,0.00020547,2]
[387131912,1758588675031,-200.47701238,0.00020547,2]
[387131913,1758588675041,-400.0,0.00020547,2]
[387131914,1758588675051,-400.0,0.00020547,2]
[387131915,1758588675062,-400.0,0.00020547,2]
[387131916,1758588675072,-537.91007832,0.00020547,2]
[387131917,1758588675085,-400.0,0.00020547,2]
[387131918,1758588675095,-1049.53,0.00020547,2]
[387131919,1758588675106,-400.0,0.00020547,2]
[387131920,1758588675116,-400.0,0.00020547,2]
[387131921,1758588675126,-400.0,0.00020547,2]
[387131922,1758588675137,-400.0,0.00020547,2]
[387131923,1758588675147,-400.0,0.00020547,2]
[387131924,1758588675157,-669.85,0.00020547,2]
[387131925,1758588675167,-524.43,0.00020547,2]
[387131926,1758588675177,-151.0,0.00020547,2]
[387131927,1758588675187,-400.0,0.00020547,2]
[387131928,1758588675196,-480.73,0.00020547,2]
[387131929,1758588675206,-418.66,0.00020547,2]
[387131930,1758588675215,-400.0,0.00020547,2]
[387131931,1758588675224,-400.0,0.00020547,2]
[387131932,1758588675234,-400.0,0.00020547,2]
[387131933,1758588675244,-400.0,0.00020547,2]
[387131934,1758588675254,-400.0,0.00020547,2]
[387131935,1758588675265,-400.0,0.00020547,2]
[387131936,1758588675276,-400.0,0.00020547,2]
[387131937,1758588675285,-645.11,0.00020547,2]
[387131938,1758588675295,-400.0,0.00020547,2]
[387131939,1758588675305,-400.0,0.00020547,2]
[387131940,1758588675315,-521.7,0.00020547,2]
[387131941,1758588675326,-400.0,0.00020547,2]
[387131942,1758588675335,-353.91,0.00020547,2]
[387131943,1758588675344,-3259.34,0.00020547,2]
[387131944,1758588675354,-400.0,0.00020547,2]
[387131945,1758588675364,-400.0,0.00020547,2]
[387131946,1758588675374,-819.08,0.00020547,2]
[387131947,1758588675385,-400.0,0.00020547,2]
[387131948,1758588675394,-527.41,0.00020547,2]
[387131949,1758588675403,-400.0,0.00020547,2]
[387131950,1758588675412,-400.0,0.00020547,2]
[387131951,1758588675422,-711.41,0.00020547,2]
[387131952,1758588675433,-400.0,0.00020547,2]
[387131953,1758588675442,-400.0,0.00020547,2]
[387131954,1758588675607,-400.0,0.00020547,2]
[387131955,1758588675644,-400.0,0.00020547,2]
[387131956,1758588675654,-400.0,0.00020547,2]
[387131957,1758588675663,-400.0,0.00020547,2]
[387131958,1758588675672,-707.11,0.00020547,2]
[387131959,1758588675681,-4823.52,0.00020547,2]
[387131960,1758588675690,-400.0,0.00020547,2]
[387131961,1758588675700,-400.0,0.00020547,2]
[387131962,1758588675710,-429.73,0.00020547,2]
[387131963,1758588675719,-400.0,0.00020547,2]
[387131964,1758588675729,-1811.93,0.00020547,2]
[387131965,1758588675739,-400.0,0.00020547,2]
[387131966,1758588675748,-658.31,0.00020547,2]
[387131967,1758588675758,-1161.68,0.00020547,2]
[387131968,1758588675767,-400.0,0.00020547,2]
[387131969,1758588675777,-400.0,0.00020547,2]
[387131970,1758588675786,-751.69,0.00020547,2]
[387131971,1758588675796,-400.0,0.00020547,2]
[387131972,1758588675805,-532.84,0.00020547,2]
[387131973,1758588675815,-760.3,0.00020547,2]
[387131974,1758588675824,-400.0,0.00020547,2]
[387131975,1758588675833,-400.0,0.00020547,2]
[387131976,1758588675843,-427.52,0.00020547,2]
[387131977,1758588675852,-400.0,0.00020547,2]
[387131978,1758588675862,-450.15,0.00020547,2]
[387131979,1758588675871,-500.42,0.00020547,2]
[387131980,1758588675880,-1000.0,0.00020547,2]
[387131981,1758588675890,-535.91,0.00020547,2]
[387131982,1758588675899,-440.64,0.00020547,2]
[387131983,1758588675908,-839.22,0.00020547,2]
[387131984,1758588675918,-400.0,0.00020547,2]
[387131985,1758588675928,-1017.53,0.00020547,2]
[387131986,1758588675938,-400.0,0.00020547,2]
[387131987,1758588675947,-400.0,0.00020547,2]
[387131988,1758588675956,-9183.84,0.00020547,2]
[387131989,1758588675966,-400.0,0.00020547,2]
[387131990,1758588675975,-400.0,0.00020547,2]
[387131991,1758588675984,-451.23,0.00020547,2]
[387131992,1758588675994,-400.0,0.00020547,2]
[387131993,1758588676004,-894.16,0.00020547,2]
[387131994,1758588676013,-683.2,0.00020547,2]
[387131995,1758588676022,-1123.88,0.00020547,2]
[387131996,1758588676034,-406.45,0.00020547,2]
[387131997,1758588676046,-1005.19,0.00020547,2]
[387131998,1758588676056,-808.52,0.00020547,2]
[387131999,1758588676065,-1110.73,0.00020547,2]
[387132000,1758588676075,-400.0,0.00020547,2]
[387132001,1758588676088,-1205.76,0.00020547,2]
[387132002,1758588676098,-400.0,0.00020547,2]
[387132003,1758588676107,-400.0,0.00020547,2]
[387132004,1758588676116,-741.22,0.00020547,2]
[387132005,1758588676126,-400.0,0.00020547,2]
[387132006,1758588676135,-233669.14916135,0.00020547,2]
[387132007,1758588676145,-500.0,0.00020573,2]
[387132008,1758588676154,-514.28884812,0.00020573,2]
[387132009,1758588676165,-500.0,0.00020573,2]
[387132010,1758588676176,-500.0,0.00020573,2]
[387132011,1758588676186,-500.0,0.00020573,2]
[387132012,1758588676195,-150.0,0.000206,2]
[387132013,1758588676204,-150.0,0.000206,2]
[387132014,1758588676214,-150.0,0.000206,2]
[387132015,1758588676223,-150.0,0.000206,2]
[387132016,1758588676232,-150.0,0.000206,2]
[387132017,1758588676242,-150.0,0.000206,2]
[387132018,1758588676253,-150.0,0.000206,2]
[387132019,1758588676262,-264.92,0.000206,2]
[387132020,1758588676271,-150.0,0.000207,2]
[387132021,1758588676281,-356.5,0.00020714,2]
[387132022,1758588676290,-500.0,0.00020715,2]
[387132023,1758588676299,-500.0,0.00020715,2]
[387132024,1758588676309,-500.0,0.00020715,2]
[387132025,1758588676318,-765.8,0.00020715,2]
[387132026,1758588676327,-500.0,0.00020715,2]
[387132027,1758588676336,-500.0,0.00020715,2]